[Event "The Schackveckan 2023: IM-turnering"]
[Site "Goteborgs schackcentrum, Vegagatan 20, Gothenburg, Sweden"]
[Date "2023.08.09"]
[Round "7.3"]
[White "Tryggestad, Andreas Garberg"]
[Black "Hector, Jonny"]
[Result "1-0"]
[TimeControl "90 minutes for 40 moves + 30 minutes for the rest of the game + 30 seconds per move from move one."]
[WhiteTitle "FM"]
[BlackTitle "GM"]
[WhiteFideId "1513338"]
[BlackFideId "1700090"]
[WhiteElo "2233"]
[BlackElo "2466"]

1. d4 {[%clk 01:30:58]} {[%emt 00:00:01]} d5 {[%clk 01:30:56]} {[%emt
00:00:03]} 2. c4 {[%clk 01:31:25]} {[%emt 00:00:05]} c6 {[%clk 01:31:15]}
{[%emt 00:00:09]} 3. Nf3 {[%clk 01:31:50]} {[%emt 00:00:06]} Nf6 {[%clk
01:31:37]} {[%emt 00:00:07]} 4. Nc3 {[%clk 01:32:16]} {[%emt 00:00:05]} dxc4
{[%clk 01:31:50]} {[%emt 00:00:17]} 5. a4 {[%clk 01:32:40]} {[%emt 00:00:07]}
Bf5 {[%clk 01:32:13]} {[%emt 00:00:06]} 6. Ne5 {[%clk 01:33:06]} {[%emt
00:00:04]} Nbd7 {[%clk 01:32:02]} {[%emt 00:00:40]} 7. Nxc4 {[%clk 01:33:29]}
{[%emt 00:00:08]} Qc7 {[%clk 01:32:18]} {[%emt 00:00:13]} 8. g3 {[%clk
01:33:54]} {[%emt 00:00:06]} e5 {[%clk 01:32:36]} {[%emt 00:00:11]} 9. dxe5
{[%clk 01:34:19]} {[%emt 00:00:07]} Nxe5 {[%clk 01:32:57]} {[%emt 00:00:07]} 10.
Bf4 {[%clk 01:34:45]} {[%emt 00:00:05]} Nfd7 {[%clk 01:31:27]} {[%emt
00:02:00]} 11. Bg2 {[%clk 01:35:10]} {[%emt 00:00:06]} g5 {[%clk 01:30:12]}
{[%emt 00:01:44]} 12. Bxe5 {[%clk 01:35:28]} {[%emt 00:00:13]} Nxe5 {[%clk
01:30:31]} {[%emt 00:00:09]} 13. Qd4 {[%clk 01:35:55]} {[%emt 00:00:04]} f6
{[%clk 01:24:15]} {[%emt 00:06:45]} 14. O-O-O {[%clk 01:36:14]} {[%emt
00:00:12]} Rd8 {[%clk 01:12:34]} {[%emt 00:12:11]} 15. Qe3 {[%clk 01:36:42]}
{[%emt 00:00:02]} Be7 {[%clk 01:11:26]} {[%emt 00:01:37]} 16. Rxd8+ {[%clk
01:36:42]} {[%emt 00:00:31]} Kxd8 {[%clk 01:11:45]} {[%emt 00:00:10]} 17. Rd1+
{[%clk 01:37:00]} {[%emt 00:00:13]} Kc8 {[%clk 01:09:30]} {[%emt 00:02:44]} 18.
Be4 {[%clk 01:36:29]} {[%emt 00:01:03]} Bxe4 {[%clk 01:03:59]} {[%emt
00:06:00]} 19. Qxe4 {[%clk 01:34:57]} {[%emt 00:02:02]} Nxc4 {[%clk 00:54:20]}
{[%emt 00:10:08]} 20. Qe6+ {[%clk 01:30:47]} {[%emt 00:04:41]} Kb8 {[%clk
00:54:41]} {[%emt 00:00:09]} 21. Rd7 {[%clk 01:31:02]} {[%emt 00:00:15]} Qb6
{[%clk 00:45:22]} {[%emt 00:09:49]} 22. Qxc4 {[%clk 01:31:19]} {[%emt
00:00:13]} Bd8 {[%clk 00:45:10]} {[%emt 00:00:41]} 23. Qf7 {[%clk 01:18:24]}
{[%emt 00:13:27]} Ka8 {[%clk 00:38:25]} {[%emt 00:07:14]} 24. Qe6 {[%clk
00:48:51]} {[%emt 00:30:04]} a5 {[%clk 00:27:17]} {[%emt 00:11:37]} 25. e3
{[%clk 00:42:46]} {[%emt 00:06:35]} h5 {[%clk 00:24:36]} {[%emt 00:03:12]} 26.
Ne4 {[%clk 00:37:45]} {[%emt 00:05:31]} Qb4 {[%clk 00:21:44]} {[%emt 00:03:21]}
27. Rd4 {[%clk 00:36:58]} {[%emt 00:01:18]} Qb6 {[%clk 00:16:57]} {[%emt
00:05:17]} 28. Qc8+ {[%clk 00:34:14]} {[%emt 00:03:14]} Ka7 {[%clk 00:17:24]}
{[%emt 00:00:02]} 29. Rd7 {[%clk 00:31:43]} {[%emt 00:03:01]} Qb4 {[%clk
00:13:33]} {[%emt 00:04:20]} 30. Rxd8 {[%clk 00:24:41]} {[%emt 00:07:33]} Qc4+
{[%clk 00:10:26]} {[%emt 00:03:35]} 31. Nc3 {[%clk 00:24:31]} {[%emt 00:00:42]}
Qf1+ {[%clk 00:10:52]} {[%emt 00:00:04]} 32. Nd1 {[%clk 00:19:47]} {[%emt
00:05:14]} Qc4+ {[%clk 00:11:11]} {[%emt 00:00:11]} 33. Kd2 {[%clk 00:20:10]}
{[%emt 00:00:07]} Qb4+ {[%clk 00:11:02]} {[%emt 00:00:39]} 34. Ke2 {[%clk
00:20:13]} {[%emt 00:00:28]} Qc4+ {[%clk 00:10:56]} {[%emt 00:00:34]} 35. Ke1
{[%clk 00:20:16]} {[%emt 00:00:28]} Qb4+ {[%clk 00:10:48]} {[%emt 00:00:38]} 36.
Nc3 {[%clk 00:14:09]} {[%emt 00:06:37]} Qxb2 {[%clk 00:10:54]} {[%emt
00:00:24]} 37. Nb5+ {[%clk 00:11:45]} {[%emt 00:02:55]} Kb6 {[%clk 00:11:19]}
{[%emt 00:00:04]} 38. Rxh8 {[%clk 00:09:23]} {[%emt 00:02:51]} Qc1+ {[%clk
00:07:46]} {[%emt 00:04:03]} 39. Ke2 {[%clk 00:09:49]} {[%emt 00:00:05]} Qc4+
{[%clk 00:05:47]} {[%emt 00:02:29]} 40. Kd2 {[%clk 00:07:31]} {[%emt 00:02:49]}
Qa2+ {[%clk 00:05:32]} {[%emt 00:00:44]} 41. Ke1 {[%clk 00:07:11]} {[%emt
00:00:50]} Qb1+ {[%clk 00:04:29]} {[%emt 00:01:34]} 42. Ke2 {[%clk 00:07:25]}
{[%emt 00:00:16]} Qc2+ {[%clk 00:03:27]} {[%emt 00:01:31]} 43. Kf1 {[%clk
00:07:36]} {[%emt 00:00:19]} Qd1+ {[%clk 00:01:01]} {[%emt 00:02:55]} 44. Kg2
{[%clk 00:07:46]} {[%emt 00:00:21]} Qd5+ {[%clk 00:01:03]} {[%emt 00:00:27]} 45.
f3 {[%clk 00:07:30]} {[%emt 00:00:48]} Qd2+ {[%clk 00:01:03]} {[%emt 00:00:30]}
46. Kh3 {[%clk 00:07:53]} {[%emt 00:00:06]} Qe2 {[%clk 00:01:05]} {[%emt
00:00:28]} 47. Qc7+ {[%clk 00:07:09]} {[%emt 00:01:15]} Kc5 {[%clk 00:00:59]}
{[%emt 00:00:35]} 48. Qd6+ {[%clk 00:07:29]} {[%emt 00:00:11]} Kc4 {[%clk
00:01:14]} {[%emt 00:00:14]} 49. Qd4+ {[%clk 00:07:47]} {[%emt 00:00:13]} Kb3
{[%clk 00:01:29]} {[%emt 00:00:13]} 50. Qd5+ {[%clk 00:23:36]} {[%emt
00:14:42]} Kb4 {[%clk 00:30:44]} {[%emt 00:01:15]} 51. Qe4+ {[%clk 00:23:42]}
{[%emt 00:00:24]} 1-0

[Event "The Schackveckan 2023: IM-turnering"]
[Site "Goteborgs schackcentrum, Vegagatan 20, Gothenburg, Sweden"]
[Date "2023.08.09"]
[Round "7.4"]
[White "Karlsson, Stefan"]
[Black "Storme, Isak"]
[Result "0-1"]
[TimeControl "90 minutes for 40 moves + 30 minutes for the rest of the game + 30 seconds per move from move one."]
[BlackTitle "IM"]
[WhiteFideId "1771183"]
[BlackFideId "1728113"]
[WhiteElo "1925"]
[BlackElo "2448"]

1. e4 {[%clk 01:28:21]} {[%emt 00:02:38]} c5 {[%clk 01:30:53]} {[%emt
00:00:08]} 2. Nf3 {[%clk 01:28:47]} {[%emt 00:00:04]} d6 {[%clk 01:31:18]}
{[%emt 00:00:04]} 3. c3 {[%clk 01:29:13]} {[%emt 00:00:04]} Nf6 {[%clk
01:31:43]} {[%emt 00:00:05]} 4. Be2 {[%clk 01:29:41]} {[%emt 00:00:03]} Nbd7
{[%clk 01:32:06]} {[%emt 00:00:07]} 5. d3 {[%clk 01:29:29]} {[%emt 00:00:42]}
g6 {[%clk 01:31:49]} {[%emt 00:00:47]} 6. O-O {[%clk 01:28:23]} {[%emt
00:01:35]} Bg7 {[%clk 01:31:57]} {[%emt 00:00:22]} 7. h3 {[%clk 01:24:04]}
{[%emt 00:04:50]} O-O {[%clk 01:31:53]} {[%emt 00:00:34]} 8. Bg5 {[%clk
01:24:20]} {[%emt 00:00:13]} b5 {[%clk 01:30:32]} {[%emt 00:01:52]} 9. Nbd2
{[%clk 01:21:23]} {[%emt 00:03:26]} Bb7 {[%clk 01:27:05]} {[%emt 00:03:57]} 10.
Re1 {[%clk 01:18:52]} {[%emt 00:03:01]} h6 {[%clk 01:24:08]} {[%emt 00:03:28]}
11. Be3 {[%clk 01:18:24]} {[%emt 00:00:57]} e5 {[%clk 01:22:57]} {[%emt
00:01:42]} 12. a4 {[%clk 01:12:40]} {[%emt 00:06:13]} a6 {[%clk 01:22:06]}
{[%emt 00:01:21]} 13. Qc2 {[%clk 01:04:08]} {[%emt 00:09:02]} d5 {[%clk
01:20:56]} {[%emt 00:01:40]} 14. exd5 {[%clk 01:03:41]} {[%emt 00:00:58]} Nxd5
{[%clk 01:21:05]} {[%emt 00:00:19]} 15. axb5 {[%clk 00:56:40]} {[%emt
00:07:32]} axb5 {[%clk 01:19:17]} {[%emt 00:02:19]} 16. Rxa8 {[%clk 00:42:38]}
{[%emt 00:14:31]} Bxa8 {[%clk 01:17:36]} {[%emt 00:02:10]} 17. d4 {[%clk
00:40:28]} {[%emt 00:02:41]} exd4 {[%clk 00:58:31]} {[%emt 00:19:36]} 18. cxd4
{[%clk 00:40:32]} {[%emt 00:00:26]} Nxe3 {[%clk 00:58:23]} {[%emt 00:00:38]} 19.
fxe3 {[%clk 00:40:52]} {[%emt 00:00:09]} Qb6 {[%clk 00:56:22]} {[%emt
00:02:31]} 20. Kh1 {[%clk 00:35:40]} {[%emt 00:05:42]} Re8 {[%clk 00:54:05]}
{[%emt 00:02:48]} 21. dxc5 {[%clk 00:20:11]} {[%emt 00:15:58]} Nxc5 {[%clk
00:54:03]} {[%emt 00:00:33]} 22. Nb3 {[%clk 00:19:08]} {[%emt 00:01:32]} Ne4
{[%clk 00:51:51]} {[%emt 00:02:41]} 23. Nbd4 {[%clk 00:18:35]} {[%emt
00:01:04]} Nf2+ {[%clk 00:48:01]} {[%emt 00:04:21]} 24. Kg1 {[%clk 00:17:47]}
{[%emt 00:01:17]} Rxe3 {[%clk 00:45:18]} {[%emt 00:03:13]} 25. Qc8+ {[%clk
00:08:28]} {[%emt 00:09:49]} Kh7 {[%clk 00:45:42]} {[%emt 00:00:06]} 26. Qxa8
{[%clk 00:08:10]} {[%emt 00:00:48]} Bxd4 {[%clk 00:45:53]} {[%emt 00:00:19]} 27.
Nxd4 {[%clk 00:06:56]} {[%emt 00:01:44]} Qxd4 {[%clk 00:46:07]} {[%emt
00:00:16]} 28. Qf8 {[%clk 00:06:34]} {[%emt 00:00:52]} Nxh3+ {[%clk 00:45:25]}
{[%emt 00:01:12]} 29. Kh1 {[%clk 00:06:49]} {[%emt 00:00:15]} Qf4 {[%clk
00:44:18]} {[%emt 00:01:36]} 30. Qc5 {[%clk 00:06:16]} {[%emt 00:01:04]} Nf2+
{[%clk 00:44:14]} {[%emt 00:00:34]} 31. Kg1 {[%clk 00:06:36]} {[%emt 00:00:10]}
Ng4 {[%clk 00:44:29]} {[%emt 00:00:15]} 32. Qc7 {[%clk 00:05:05]} {[%emt
00:02:01]} Qxc7 {[%clk 00:44:50]} {[%emt 00:00:10]} 33. Bxg4 {[%clk 00:05:24]}
{[%emt 00:00:11]} Rxe1+ {[%clk 00:45:13]} {[%emt 00:00:07]} 34. Kf2 {[%clk
00:05:49]} {[%emt 00:00:04]} Qc1 {[%clk 00:45:31]} {[%emt 00:00:12]} 35. Bd7
{[%clk 00:06:10]} {[%emt 00:00:08]} Qe3# {[%emt 00:00:19]} 0-1

[Event "The Schackveckan 2023: IM-turnering"]
[Site "Goteborgs schackcentrum, Vegagatan 20, Gothenburg, Sweden"]
[Date "2023.08.09"]
[Round "7.5"]
[White "Brattgjerd, Isak Vinh"]
[Black "Kistrup, Nicolai"]
[Result "1/2-1/2"]
[TimeControl "90 minutes for 40 moves + 30 minutes for the rest of the game + 30 seconds per move from move one."]
[BlackTitle "FM"]
[WhiteFideId "1549880"]
[BlackFideId "1444816"]
[WhiteElo "2214"]
[BlackElo "2339"]

1. e4 {[%clk 01:30:58]} {[%emt 00:00:01]} c5 {[%clk 01:30:56]} {[%emt
00:00:04]} 2. Nf3 {[%clk 01:31:22]} {[%emt 00:00:06]} d6 {[%clk 01:31:22]}
{[%emt 00:00:05]} 3. d4 {[%clk 01:31:49]} {[%emt 00:00:03]} cxd4 {[%clk
01:31:49]} {[%emt 00:00:03]} 4. Nxd4 {[%clk 01:32:11]} {[%emt 00:00:07]} Nf6
{[%clk 01:32:16]} {[%emt 00:00:04]} 5. Nc3 {[%clk 01:32:35]} {[%emt 00:00:06]}
Nc6 {[%clk 01:32:43]} {[%emt 00:00:03]} 6. Bg5 {[%clk 01:32:53]} {[%emt
00:00:11]} e6 {[%clk 01:33:01]} {[%emt 00:00:13]} 7. Qd2 {[%clk 01:33:18]}
{[%emt 00:00:04]} a6 {[%clk 01:33:24]} {[%emt 00:00:08]} 8. O-O-O {[%clk
01:33:39]} {[%emt 00:00:08]} Bd7 {[%clk 01:33:50]} {[%emt 00:00:06]} 9. Kb1
{[%clk 01:33:47]} {[%emt 00:00:21]} Nxd4 {[%clk 01:33:39]} {[%emt 00:00:41]} 10.
Qxd4 {[%clk 01:34:08]} {[%emt 00:00:08]} Be7 {[%clk 01:33:56]} {[%emt
00:00:14]} 11. f4 {[%clk 01:31:08]} {[%emt 00:03:29]} Bc6 {[%clk 01:14:55]}
{[%emt 00:19:32]} 12. Be2 {[%clk 01:18:46]} {[%emt 00:12:52]} O-O {[%clk
00:58:26]} {[%emt 00:16:58]} 13. Bf3 {[%clk 01:11:46]} {[%emt 00:07:30]} h6
{[%clk 00:54:40]} {[%emt 00:04:17]} 14. Bxf6 {[%clk 01:04:00]} {[%emt
00:08:15]} Bxf6 {[%clk 00:54:23]} {[%emt 00:00:47]} 15. Qe3 {[%clk 00:51:56]}
{[%emt 00:12:34]} Qc7 {[%clk 00:48:54]} {[%emt 00:06:00]} 16. h4 {[%clk
00:47:45]} {[%emt 00:04:40]} Rfc8 {[%clk 00:37:19]} {[%emt 00:12:05]} 17. Rd2
{[%clk 00:33:47]} {[%emt 00:14:28]} b5 {[%clk 00:27:02]} {[%emt 00:10:48]} 18.
Ne2 {[%clk 00:24:35]} {[%emt 00:09:41]} b4 {[%clk 00:23:53]} {[%emt 00:03:40]}
19. Nd4 {[%clk 00:21:04]} {[%emt 00:04:01]} Ba4 {[%clk 00:19:56]} {[%emt
00:04:27]} 20. b3 {[%clk 00:18:02]} {[%emt 00:03:33]} Bd7 {[%clk 00:16:57]}
{[%emt 00:03:28]} 21. g4 {[%clk 00:12:24]} {[%emt 00:06:08]} e5 {[%clk
00:15:25]} {[%emt 00:02:02]} 22. fxe5 {[%clk 00:12:15]} {[%emt 00:00:39]} Bxe5
{[%clk 00:15:50]} {[%emt 00:00:05]} 23. g5 {[%clk 00:11:51]} {[%emt 00:00:53]}
hxg5 {[%clk 00:13:54]} {[%emt 00:02:26]} 24. hxg5 {[%clk 00:12:08]} {[%emt
00:00:14]} a5 {[%clk 00:13:22]} {[%emt 00:01:02]} 25. Be2 {[%clk 00:10:17]}
{[%emt 00:02:21]} Qc3 {[%clk 00:10:24]} {[%emt 00:03:28]} 26. Rd3 {[%clk
00:07:47]} {[%emt 00:03:00]} Qc5 {[%clk 00:09:54]} {[%emt 00:01:00]} 27. Rd2
{[%clk 00:08:02]} {[%emt 00:00:15]} Qc3 {[%clk 00:04:29]} {[%emt 00:05:54]} 28.
Rd3 {[%clk 00:08:31]} {[%emt 00:00:02]} Qc5 {[%clk 00:04:33]} {[%emt 00:00:26]}
29. Rd2 {[%clk 00:08:53]} {[%emt 00:00:06]} Be6 {[%clk 00:03:10]} {[%emt
00:01:54]} 30. g6 {[%clk 00:05:43]} {[%emt 00:03:40]} fxg6 {[%clk 00:03:28]}
{[%emt 00:00:13]} 31. Qg1 {[%clk 00:01:25]} {[%emt 00:04:47]} Bf7 {[%clk
00:02:34]} {[%emt 00:01:25]} 32. Bg4 {[%clk 00:01:20]} {[%emt 00:00:35]} a4
{[%clk 00:01:16]} {[%emt 00:01:48]} 33. Bxc8 {[%clk 00:00:44]} {[%emt
00:01:05]} Rxc8 {[%clk 00:01:38]} {[%emt 00:00:09]} 34. Rdh2 {[%clk 00:00:46]}
{[%emt 00:00:28]} Kf8 {[%emt 00:00:54]} 35. Rh8+ {[%clk 00:01:09]} Ke7 {[%clk
00:01:33]} {[%emt 00:00:18]} 36. Qg5+ {[%clk 00:01:10]} {[%emt 00:00:29]} Bf6
{[%clk 00:01:41]} {[%emt 00:00:22]} 37. Qxc5 {[%clk 00:01:21]} {[%emt
00:00:19]} Rxc5 {[%clk 00:02:06]} {[%emt 00:00:05]} 38. Ne2 {[%clk 00:01:25]}
{[%emt 00:00:25]} Re5 {[%clk 00:01:35]} {[%emt 00:01:01]} 39. Ng3 {[%clk
00:00:40]} {[%emt 00:01:16]} Rg5 {[%clk 00:01:53]} {[%emt 00:00:12]} 40. Ne2
{[%clk 00:00:38]} {[%emt 00:00:32]} Rg4 {[%clk 00:01:44]} {[%emt 00:00:39]} 41.
Ra8 {[%clk 00:00:45]} {[%emt 00:00:23]} Rxe4 {[%clk 00:28:30]} {[%emt
00:03:43]} 42. Ra7+ {[%clk 00:29:48]} {[%emt 00:01:27]} Ke6 {[%clk 00:27:33]}
{[%emt 00:01:27]} 43. Nc1 {[%clk 00:28:16]} {[%emt 00:01:57]} axb3 {[%clk
00:18:12]} {[%emt 00:09:57]} 44. axb3 {[%clk 00:28:10]} {[%emt 00:00:36]} g5
{[%clk 00:18:08]} {[%emt 00:00:33]} 45. Nd3 {[%clk 00:26:59]} {[%emt 00:01:41]}
Bc3 {[%clk 00:12:04]} {[%emt 00:06:34]} 46. Ra5 {[%clk 00:25:27]} {[%emt
00:02:02]} Kf6 {[%clk 00:08:14]} {[%emt 00:04:20]} 47. Rf1+ {[%clk 00:24:53]}
{[%emt 00:01:04]} Kg6 {[%clk 00:08:16]} {[%emt 00:00:28]} 48. Ra6 {[%clk
00:25:17]} {[%emt 00:00:06]} Re6 {[%clk 00:07:46]} {[%emt 00:01:00]} 49. Rb6
{[%clk 00:25:37]} {[%emt 00:00:11]} d5 {[%clk 00:06:36]} {[%emt 00:01:40]} 50.
Rb7 {[%clk 00:23:09]} {[%emt 00:02:58]} Ra6 {[%clk 00:06:19]} {[%emt 00:00:47]}
51. Nb2 {[%clk 00:23:19]} {[%emt 00:00:19]} Be8 {[%clk 00:03:52]} {[%emt
00:02:57]} 52. Re7 {[%clk 00:23:19]} {[%emt 00:00:30]} Bb5 {[%clk 00:04:04]}
{[%emt 00:00:18]} 53. Rd1 {[%clk 00:23:17]} {[%emt 00:00:31]} d4 {[%clk
00:03:33]} {[%emt 00:01:02]} 54. Re5 {[%clk 00:23:02]} {[%emt 00:00:45]} Bd7
{[%clk 00:03:52]} {[%emt 00:00:12]} 55. Re7 {[%clk 00:21:21]} {[%emt 00:02:10]}
Bf5 {[%clk 00:03:57]} {[%emt 00:00:25]} 56. Na4 {[%clk 00:21:21]} {[%emt
00:00:31]} d3 {[%clk 00:01:08]} {[%emt 00:03:18]} 57. cxd3 {[%clk 00:21:32]}
{[%emt 00:00:19]} Bd4 {[%clk 00:01:31]} {[%emt 00:00:07]} 58. Rb7 {[%clk
00:05:15]} {[%emt 00:16:47]} g4 {[%clk 00:01:54]} {[%emt 00:00:07]} 59. Rxb4
{[%clk 00:05:22]} {[%emt 00:00:23]} Rd6 {[%clk 00:02:07]} {[%emt 00:00:18]} 60.
Kc2 {[%clk 00:02:28]} {[%emt 00:03:24]} g3 {[%clk 00:01:14]} {[%emt 00:01:23]}
61. Nc3 {[%clk 00:02:06]} {[%emt 00:00:52]} Kg5 {[%clk 00:00:40]} {[%emt
00:01:04]} 62. Ne4+ {[%clk 00:00:45]} {[%emt 00:01:51]} Bxe4 {[%clk 00:01:04]}
{[%emt 00:00:06]} 63. dxe4 {[%clk 00:01:13]} {[%emt 00:00:02]} g2 {[%clk
00:00:41]} {[%emt 00:00:53]} 64. Rbxd4 {[%clk 00:01:38]} {[%emt 00:00:05]} Rxd4
{[%clk 00:01:07]} {[%emt 00:00:05]} 65. Rg1 {[%clk 00:02:05]} {[%emt 00:00:02]}
Rxe4 {[%clk 00:00:54]} {[%emt 00:00:43]} 1/2-1/2

[Event "The Schackveckan 2023: IM-turnering"]
[Site "Goteborgs schackcentrum, Vegagatan 20, Gothenburg, Sweden"]
[Date "2023.08.10"]
[Round "8.1"]
[White "Sorensen, Hampus"]
[Black "Brattgjerd, Isak Vinh"]
[Result "1/2-1/2"]
[TimeControl "90 minutes for 40 moves + 30 minutes for the rest of the game + 30 seconds per move from move one."]
[WhiteTitle "IM"]
[WhiteFideId "8703884"]
[BlackFideId "1549880"]
[WhiteElo "2475"]
[BlackElo "2214"]

1. Nf3 {[%clk 01:30:53]} {[%emt 00:00:06]} d5 {[%clk 01:27:45]} {[%emt
00:03:16]} 2. g3 {[%clk 01:31:07]} {[%emt 00:00:15]} Bg4 {[%clk 01:28:04]}
{[%emt 00:00:12]} 3. Bg2 {[%clk 01:30:55]} {[%emt 00:00:42]} Nd7 {[%clk
01:28:02]} {[%emt 00:00:32]} 4. h3 {[%clk 01:23:15]} {[%emt 00:08:10]} Bxf3
{[%clk 01:28:20]} {[%emt 00:00:12]} 5. Bxf3 {[%clk 01:23:31]} {[%emt 00:00:14]}
Ngf6 {[%clk 01:28:32]} {[%emt 00:00:18]} 6. d3 {[%clk 01:18:57]} {[%emt
00:05:04]} e5 {[%clk 01:26:41]} {[%emt 00:02:20]} 7. O-O {[%clk 01:18:02]}
{[%emt 00:01:26]} c6 {[%clk 01:25:44]} {[%emt 00:01:28]} 8. e4 {[%clk
01:13:32]} {[%emt 00:04:59]} dxe4 {[%clk 01:24:53]} {[%emt 00:01:21]} 9. dxe4
{[%clk 01:13:56]} {[%emt 00:00:06]} Bc5 {[%clk 01:21:47]} {[%emt 00:03:36]} 10.
a4 {[%clk 01:13:08]} {[%emt 00:01:18]} a5 {[%clk 01:21:08]} {[%emt 00:01:09]}
11. Nd2 {[%clk 01:12:58]} {[%emt 00:00:39]} O-O {[%clk 01:20:07]} {[%emt
00:01:30]} 12. Nc4 {[%clk 01:08:34]} {[%emt 00:04:56]} Qc7 {[%clk 01:19:58]}
{[%emt 00:00:39]} 13. Qe1 {[%clk 01:01:12]} {[%emt 00:07:52]} Rfe8 {[%clk
01:14:23]} {[%emt 00:06:05]} 14. Bg5 {[%clk 00:57:15]} {[%emt 00:04:27]} b6
{[%clk 01:06:28]} {[%emt 00:08:26]} 15. c3 {[%clk 00:51:14]} {[%emt 00:06:30]}
h6 {[%clk 01:05:47]} {[%emt 00:01:11]} 16. Bd2 {[%clk 00:49:53]} {[%emt
00:01:51]} Rad8 {[%clk 01:01:51]} {[%emt 00:04:26]} 17. Ne3 {[%clk 00:43:55]}
{[%emt 00:06:28]} Nf8 {[%clk 00:39:32]} {[%emt 00:22:48]} 18. Nf5 {[%clk
00:42:02]} {[%emt 00:02:24]} Ne6 {[%clk 00:37:46]} {[%emt 00:02:17]} 19. Qc1
{[%clk 00:37:52]} {[%emt 00:04:39]} Bf8 {[%clk 00:36:50]} {[%emt 00:01:25]} 20.
Rd1 {[%clk 00:37:52]} {[%emt 00:00:30]} Nc5 {[%clk 00:30:37]} {[%emt 00:06:43]}
21. Qc2 {[%clk 00:37:59]} {[%emt 00:00:24]} Rd7 {[%clk 00:30:17]} {[%emt
00:00:50]} 22. Be3 {[%clk 00:32:12]} {[%emt 00:06:17]} Red8 {[%clk 00:30:04]}
{[%emt 00:00:43]} 23. Rxd7 {[%clk 00:32:25]} {[%emt 00:00:17]} Rxd7 {[%clk
00:30:23]} {[%emt 00:00:11]} 24. b4 {[%clk 00:27:44]} {[%emt 00:05:11]} axb4
{[%clk 00:23:44]} {[%emt 00:07:09]} 25. cxb4 {[%clk 00:28:03]} {[%emt
00:00:11]} Nd3 {[%clk 00:21:04]} {[%emt 00:03:10]} 26. b5 {[%clk 00:28:17]}
{[%emt 00:00:16]} Nb4 {[%clk 00:17:41]} {[%emt 00:03:52]} 27. Qc4 {[%clk
00:25:07]} {[%emt 00:03:40]} c5 {[%clk 00:17:59]} {[%emt 00:00:12]} 28. Bc1
{[%clk 00:20:12]} {[%emt 00:05:26]} g6 {[%clk 00:13:23]} {[%emt 00:05:06]} 29.
Nxh6+ {[%clk 00:16:19]} {[%emt 00:04:23]} Kh7 {[%clk 00:13:29]} {[%emt
00:00:25]} 30. Ng4 {[%clk 00:11:49]} {[%emt 00:04:59]} Nxg4 {[%clk 00:13:57]}
{[%emt 00:00:01]} 31. Bxg4 {[%clk 00:11:30]} {[%emt 00:00:49]} Rd4 {[%clk
00:14:24]} {[%emt 00:00:04]} 32. Qc3 {[%clk 00:10:06]} {[%emt 00:01:54]} Rd3
{[%clk 00:14:06]} {[%emt 00:00:48]} 33. Qc4 {[%clk 00:10:32]} {[%emt 00:00:04]}
Rd4 {[%clk 00:14:20]} {[%emt 00:00:15]} 34. Qc3 {[%clk 00:10:53]} {[%emt
00:00:10]} Rd3 {[%clk 00:10:54]} {[%emt 00:03:56]} 35. Qc4 {[%clk 00:05:14]}
{[%emt 00:06:09]} Rd4 {[%clk 00:10:45]} {[%emt 00:01:39]} 1/2-1/2

[Event "The Schackveckan 2023: IM-turnering"]
[Site "Goteborgs schackcentrum, Vegagatan 20, Gothenburg, Sweden"]
[Date "2023.08.10"]
[Round "8.2"]
[White "Storme, Isak"]
[Black "Ustianovich, Nazar"]
[Result "1-0"]
[TimeControl "90 minutes for 40 moves + 30 minutes for the rest of the game + 30 seconds per move from move one."]
[WhiteTitle "IM"]
[BlackTitle "FM"]
[WhiteFideId "1728113"]
[BlackFideId "14109778"]
[WhiteElo "2448"]
[BlackElo "2314"]

1. d4 {[%clk 01:30:54]} {[%emt 00:00:06]} d5 {[%clk 01:30:32]} {[%emt
00:00:29]} 2. c4 {[%clk 01:31:10]} {[%emt 00:00:13]} dxc4 {[%clk 01:29:43]}
{[%emt 00:01:19]} 3. Nf3 {[%clk 01:31:12]} {[%emt 00:00:28]} Nf6 {[%clk
01:28:32]} {[%emt 00:01:42]} 4. e3 {[%clk 01:31:16]} {[%emt 00:00:25]} e6
{[%clk 01:28:39]} {[%emt 00:00:23]} 5. Bxc4 {[%clk 01:31:31]} {[%emt 00:00:15]}
c5 {[%clk 01:29:04]} {[%emt 00:00:06]} 6. O-O {[%clk 01:30:49]} {[%emt
00:01:11]} Nc6 {[%clk 01:28:43]} {[%emt 00:00:51]} 7. Qe2 {[%clk 01:27:51]}
{[%emt 00:03:28]} cxd4 {[%clk 01:27:58]} {[%emt 00:01:16]} 8. Rd1 {[%clk
01:27:13]} {[%emt 00:01:07]} Be7 {[%clk 01:27:34]} {[%emt 00:00:54]} 9. exd4
{[%clk 01:25:53]} {[%emt 00:01:50]} O-O {[%clk 01:27:57]} {[%emt 00:00:08]} 10.
Nc3 {[%clk 01:21:45]} {[%emt 00:04:37]} Na5 {[%clk 01:27:32]} {[%emt 00:00:56]}
11. Bd3 {[%clk 01:20:34]} {[%emt 00:01:41]} b6 {[%clk 01:27:57]} {[%emt
00:00:05]} 12. Bg5 {[%clk 01:09:23]} {[%emt 00:11:40]} Bb7 {[%clk 01:28:22]}
{[%emt 00:00:05]} 13. Rac1 {[%clk 01:08:43]} {[%emt 00:01:09]} Rc8 {[%clk
01:10:05]} {[%emt 00:18:49]} 14. Bb1 {[%clk 01:06:05]} {[%emt 00:03:06]} Nc4
{[%clk 00:44:08]} {[%emt 00:26:28]} 15. Ne5 {[%clk 00:59:11]} {[%emt 00:07:24]}
Nd6 {[%clk 00:42:21]} {[%emt 00:02:17]} 16. Qe3 {[%clk 00:49:12]} {[%emt
00:10:30]} Nd5 {[%clk 00:31:55]} {[%emt 00:10:56]} 17. Qh3 {[%clk 00:47:00]}
{[%emt 00:02:40]} f5 {[%clk 00:26:41]} {[%emt 00:05:45]} 18. Bxe7 {[%clk
00:41:26]} {[%emt 00:06:03]} Qxe7 {[%clk 00:27:09]} {[%emt 00:00:03]} 19. Qg3
{[%clk 00:40:16]} {[%emt 00:01:42]} Rc7 {[%clk 00:25:08]} {[%emt 00:02:30]} 20.
Nxd5 {[%clk 00:36:34]} {[%emt 00:04:11]} Bxd5 {[%clk 00:25:28]} {[%emt
00:00:10]} 21. Rxc7 {[%clk 00:34:10]} {[%emt 00:02:54]} Qxc7 {[%clk 00:25:56]}
{[%emt 00:00:02]} 22. Nd3 {[%clk 00:34:16]} {[%emt 00:00:23]} {arbiter
decision} 1-0